lending/lending_fUSD_20250210
["ID","MTS","AMOUNT","RATE_DAILY","PERIOD"]
[352584640,1739179842179,-200.0,0.00018023,2]
[352584643,1739179842189,-200.0,0.00018023,2]
[352584645,1739179842198,-200.0,0.00018023,2]
[352584647,1739179842208,-200.0,0.00018023,2]
[352584648,1739179842217,-200.0,0.00018023,2]
[352584650,1739179842227,-200.0,0.00018023,2]
[352584652,1739179842236,-200.0,0.00018023,2]
[352584655,1739179842247,-200.0,0.00018023,2]
[352584656,1739179842257,-208.0,0.00018023,2]
[352584659,1739179842267,-150.0,0.00018037,2]
[352584661,1739179842276,-1196.42,0.00018082,4]
[352584663,1739179842285,-2000.0,0.00018082,2]
[352584665,1739179842295,-1000.0,0.00018082,2]
[352584667,1739179842305,-273.79055,0.00018088,7]
[352584669,1739179842315,-7310.60917848,0.000181,2]
[352584672,1739179842325,-3859.94,0.000182,2]
[352584674,1739179842334,-200.0,0.0001823,2]
[352584677,1739179842344,-273.79055,0.00018288,7]
[352584679,1739179842354,-1196.42,0.00018356,4]
[352584681,1739179842368,-200.0,0.0001845,2]
[352584683,1739179842379,-273.79055,0.00018488,7]
[352584686,1739179842389,-154.54,0.000186,2]
[352584689,1739179842400,-1196.42,0.0001863,4]
[352584692,1739179842411,-1400.0,0.00018647,2]
[352584695,1739179842422,-600.0,0.00018647,2]
[352584697,1739179842432,-273.79055,0.00018688,7]
[352584699,1739179842443,-200.0,0.0001875,2]
[352584701,1739179842453,-2000.0,0.00018751,2]
[352584703,1739179842467,-300.0,0.000188,2]
[352584705,1739179842478,-500.0,0.00018865,13]
[352584707,1739179842488,-500.0,0.00018865,13]
[352584710,1739179842502,-500.0,0.00018865,13]
[352584713,1739179842511,-381.0,0.00018865,13]
[352584715,1739179842520,-1100.374,0.00018865,2]
[352584717,1739179842530,-177.206,0.00018865,2]
[352584719,1739179842540,-273.79055,0.00018888,7]
[352584721,1739179842550,-172.55947856,0.000189,2]
[352584723,1739179842560,-915.0,0.000189,6]
[352584725,1739179842570,-1196.42,0.00018904,4]
[352584727,1739179842579,-639.0,0.00018925,2]
[352584729,1739179842589,-205.00070509,0.00018986,2]
[352584732,1739179842602,-150.0,0.00018986,2]
[352584734,1739179842611,-300.0,0.00018999,2]
[352584736,1739179842620,-300.0,0.00018999,2]
[352584738,1739179842630,-666.0,0.00018999,2]
[352584740,1739179842639,-14479.49764757,0.00018999,2]
[352584742,1739179842649,-300.0,0.00018999,2]
[352584744,1739179842658,-303.86089537,0.00018999,2]
[352584746,1739179842668,-666.0,0.00018999,2]
[352584748,1739179842677,-5000.12345678,0.00019,4]
[352584750,1739179842687,-77182.86066544,0.00019,2]
[352584752,1739179842696,-1586.2058522,0.00019,3]
[352584754,1739179842705,-1000.0,0.00019,3]
[352584756,1739179842715,-1000.0,0.00019,3]
[352584758,1739179842724,-1000.0,0.00019,3]
[352584760,1739179842734,-1001.0,0.00019,3]
[352584762,1739179842743,-500.0,0.00019,2]
[352584764,1739179842755,-500.0,0.00019,2]
[352584766,1739179842764,-500.0,0.00019,2]
[352584768,1739179842774,-500.0,0.00019,2]
[352584770,1739179842783,-500.0,0.00019,2]
[352584772,1739179842792,-500.0,0.00019,2]
[352584774,1739179842802,-500.0,0.00019,2]
[352584776,1739179842811,-500.0,0.00019,2]
[352584778,1739179842821,-500.0,0.00019,2]
[352584780,1739179842830,-500.0,0.00019,2]
[352584782,1739179842839,-500.0,0.00019,2]
[352584784,1739179842848,-500.0,0.00019,2]
[352584786,1739179842858,-500.0,0.00019,2]
[352584788,1739179842867,-500.0,0.00019,2]
[352584789,1739179842876,-500.0,0.00019,2]
[352584792,1739179842886,-500.0,0.00019,2]
[352584794,1739179842895,-500.0,0.00019,2]
[352584796,1739179842905,-500.0,0.00019,2]
[352584798,1739179842914,-500.0,0.00019,2]
[352584800,1739179842924,-500.0,0.00019,2]
[352584802,1739179842933,-500.0,0.00019,2]
[352584805,1739179842943,-500.0,0.00019,2]
[352584808,1739179842952,-500.0,0.00019,2]
[352584811,1739179842961,-500.0,0.00019,2]
[352584814,1739179842971,-700.0,0.00019,2]
[352584816,1739179842980,-245126.15159872,0.00019,2]
[352584818,1739179842990,-59606.51683866,0.00019,2]
[352584820,1739179843001,-53578.48472515,0.00019,2]
[352584822,1739179843011,-4632.5452234,0.00019,10]
[352584824,1739179843020,-17562.55930623,0.00019,3]
[352584826,1739179843030,-3760927.14556232,0.00019,2]
[352584828,1739179843039,-7598.56064262,0.00019,2]
[352584830,1739179843049,-961.61,0.00019,2]
[352584832,1739179843059,-3713.83148957,0.00019,2]
[352584834,1739179843068,-400.23706999,0.00019,2]
[352584836,1739179843079,-8931.99479051,0.00019,2]
[352584838,1739179843088,-273.79055,0.00019088,7]
[352584840,1739179843097,-5075.36695305,0.0001911,2]
[352584842,1739179843107,-1196.42,0.00019178,4]
[352584844,1739179843116,-150.0,0.00019178,2]
[352584846,1739179843126,-4000.0,0.00019178,2]
[352584848,1739179843136,-150.0,0.00019178,2]
[352584850,1739179843146,-1000.0,0.000192,4]
[352584852,1739179843156,-703.17,0.00019242,30]
[352584854,1739179843166,-200.0,0.0001928,2]
[352584856,1739179843175,-273.79055,0.00019288,7]
[352584858,1739179843185,-172.55947854,0.0001929,2]
[352584860,1739179843194,-3859.94,0.000193,2]
[352584862,1739179843204,-220200.40866146,0.000193,2]
[352584864,1739179843213,-47200.0,0.00019316,2]
[352584866,1739179843223,-410.2177828,0.00019362,2]
[352584868,1739179843233,-2000.0,0.0001942,2]
[352584870,1739179843243,-1196.42,0.00019452,4]
[352584872,1739179843255,-150.0,0.00019452,2]
[352584874,1739179843264,-959.93,0.00019483,2]
[352584876,1739179843274,-273.79055,0.00019488,7]
[352584878,1739179843283,-1000.0,0.000195,5]
[352584880,1739179843292,-25000.0,0.000195,21]
[352584882,1739179843302,-25000.0,0.000195,14]
[352584884,1739179843312,-4000.0,0.0001958,2]
[352584887,1739179843322,-17163.35223383,0.00019597,14]
[352584889,1739179843332,-460.88937141,0.00019599,2]
[352584891,1739179843342,-1055.3879758,0.00019602,2]
[352584893,1739179843351,-3290.64655191,0.0001961,2]
[352584895,1739179843362,-410.2177829,0.00019622,2]
[352584897,1739179843373,-500.0,0.00019641,2]
[352584899,1739179843382,-500.0,0.00019642,2]
[352584901,1739179843392,-2000.0,0.00019642,2]
[352584903,1739179843402,-500.0,0.00019642,2]
[352584905,1739179843411,-500.0,0.00019642,2]
[352584907,1739179843421,-200.0,0.00019642,2]
[352584909,1739179843430,-225.78208296,0.0001968,2]
[352584911,1739179843439,-172.55947854,0.0001968,2]
[352584913,1739179843448,-150.0,0.00019683,2]
[352584914,1739179843457,-494.62,0.00019688,2]
[352584916,1739179843467,-506.32,0.0001969,2]
[352584919,1739179843476,-300.0,0.00019698,2]
[352584921,1739179843486,-666.0,0.00019698,2]
[352584923,1739179843495,-500.0,0.00019698,3]
[352584925,1739179843506,-289.15000193,0.00019698,3]
[352584927,1739179843516,-640.86,0.00019698,3]
[352584929,1739179843525,-500.0,0.00019698,3]
[352584931,1739179843535,-323.97,0.00019698,3]
[352584933,1739179843544,-500.0,0.00019698,3]
[352584935,1739179843553,-500.0,0.00019698,3]
[352584937,1739179843566,-500.0,0.00019698,3]
[352584939,1739179843576,-500.0,0.00019698,3]
[352584941,1739179843586,-500.0,0.00019698,3]
[352584943,1739179843595,-500.0,0.00019698,3]
[352584945,1739179843605,-1494.71,0.00019698,2]
[352584947,1739179843614,-500.0,0.00019698,3]
[352584949,1739179843623,-500.0,0.00019698,3]
[352584951,1739179843633,-500.0,0.00019698,3]
[352584953,1739179843642,-500.0,0.00019698,3]
[352584955,1739179843651,-500.0,0.00019698,3]
[352584957,1739179843660,-500.0,0.00019698,3]
[352584959,1739179843669,-500.0,0.00019698,3]
[352584961,1739179843679,-500.0,0.00019698,3]
[352584963,1739179843688,-500.0,0.00019698,3]
[352584965,1739179843697,-500.0,0.00019698,3]
[352584967,1739179843706,-500.0,0.00019698,3]
[352584969,1739179843715,-300.0,0.00019699,2]
[352584971,1739179843725,-182330.5325192,0.00019699,15]
[352584973,1739179843734,-500.0,0.00019699,2]
[352584975,1739179843743,-500.0,0.00019699,3]
[352584977,1739179843753,-300.0,0.00019699,2]
[352584979,1739179843762,-203.2581315,0.00019699,3]
[352584981,1739179843771,-300.0,0.00019699,2]
[352584983,1739179843780,-666.0,0.00019699,2]
[352584985,1739179843790,-669.68307831,0.00019699,2]
[352584987,1739179843799,-300.0,0.00019699,2]
[352584989,1739179843808,-500.0,0.00019699,3]
[352584991,1739179843817,-300.0,0.00019699,2]
[352584993,1739179843827,-676.94420298,0.00019699,2]
[352584995,1739179843836,-700.18,0.00019699,3]
[352584997,1739179843844,-500.0,0.00019699,3]
[352584999,1739179843854,-500.0,0.00019699,3]
[352585001,1739179843863,-520.83,0.00019699,2]
[352585003,1739179843872,-520.83,0.00019699,2]
[352585005,1739179843881,-500.0,0.00019699,3]
[352585007,1739179843890,-520.83,0.00019699,2]
[352585009,1739179843900,-520.83,0.00019699,2]
[352585011,1739179843908,-520.83,0.00019699,2]
[352585013,1739179843918,-500.0,0.00019699,3]
[352585015,1739179843928,-520.83,0.00019699,2]
[352585017,1739179843937,-520.83,0.00019699,2]
[352585019,1739179843946,-520.83,0.00019699,2]
[352585021,1739179843955,-520.83,0.00019699,2]
[352585023,1739179843965,-520.83,0.00019699,2]
[352585024,1739179843974,-520.83,0.00019699,2]
[352585025,1739179843983,-520.83,0.00019699,2]
[352585026,1739179843992,-520.83,0.00019699,2]
[352585027,1739179844002,-520.83,0.00019699,2]
[352585028,1739179844011,-520.83,0.00019699,2]
[352585029,1739179844020,-520.83,0.00019699,2]
[352585030,1739179844029,-520.83,0.00019699,2]
[352585031,1739179844038,-520.83,0.00019699,2]
[352585032,1739179844047,-520.83,0.00019699,2]
[352585034,1739179844056,-520.83,0.00019699,2]
[352585036,1739179844065,-520.83,0.00019699,2]
[352585038,1739179844075,-520.83,0.00019699,2]
[352585040,1739179844084,-520.83,0.00019699,2]
[352585042,1739179844093,-520.91,0.00019699,2]
[352585044,1739179844102,-500.0,0.00019699,3]
[352585046,1739179844112,-674.66,0.00019699,3]
[352585048,1739179844121,-500.0,0.00019699,3]
[352585050,1739179844131,-500.0,0.00019699,3]
[352585052,1739179844140,-500.0,0.00019699,3]
[352585054,1739179844150,-500.0,0.00019699,3]
[352585056,1739179844159,-500.0,0.00019699,3]
[352585058,1739179844168,-500.0,0.00019699,3]
[352585060,1739179844178,-500.0,0.00019699,3]
[352585062,1739179844188,-500.0,0.00019699,3]
[352585064,1739179844198,-500.0,0.00019699,3]
[352585066,1739179844208,-506.51234361,0.00019699,3]
[352585068,1739179844218,-460.1812114,0.00019699,3]
[352585073,1739179844266,-500.0,0.00019699,3]
[352585075,1739179844276,-500.0,0.00019699,3]
[352585077,1739179844285,-500.0,0.00019699,3]
[352585079,1739179844295,-500.0,0.00019699,3]
[352585081,1739179844306,-500.0,0.00019699,3]
[352585083,1739179844315,-500.0,0.00019699,3]
[352585085,1739179844326,-150.0,0.00019699,2]
[352585087,1739179844335,-500.0,0.00019699,3]
[352585089,1739179844344,-500.0,0.00019699,3]
[352585091,1739179844354,-500.0,0.00019699,3]
[352585093,1739179844365,-500.0,0.00019699,3]
[352585095,1739179844376,-500.0,0.00019699,3]
[352585097,1739179844385,-500.0,0.00019699,3]
[352585099,1739179844394,-500.0,0.00019699,3]
[352585101,1739179844403,-235.22926417,0.000197,2]
[352585103,1739179844413,-2914237.13603602,0.000197,2]
[352585122,1739179844583,-578.6613056,0.000197,2]
[352585125,1739179844595,-289.15000193,0.000197,2]
[352585127,1739179844607,-741769.06818985,0.000197,2]
[352585129,1739179844618,-119774.93347008,0.000197,2]
[352585131,1739179844629,-467.4210005,0.000197,2]
[352585134,1739179844644,-13509.04793463,0.000197,2]
[352585136,1739179844655,-1705.5582732,0.000197,2]
[352585233,1739179845536,-1735.41820332,0.0001,2]
[352585235,1739179845546,-231.0,0.00018,2]
[352585237,1739179845556,-500.0,0.00019699,2]
[352585239,1739179845565,-4266.46706862,0.000197,2]
[352585248,1739179845646,-311.13376032,0.000197,2]
[352585251,1739179845657,-2866.43,0.000197,2]
[352585268,1739179845811,-530181.422918,0.000197,2]
[352585270,1739179845823,-17173.24605598,0.000197,2]
[352585272,1739179845834,-2370.0,0.000197,2]
[352585619,1739181031633,-2890.0664,8.699e-05,2]
[352585620,1739181031642,-180.45539977,9.556e-05,2]
[352585621,1739181031652,-163.27,9.556e-05,2]
[352585622,1739181031662,-150.0,9.973e-05,2]
[352585623,1739181031671,-150.0,9.998e-05,2]
[352585624,1739181031682,-739.6396624,9.998e-05,2]
[352585625,1739181031691,-500.0,9.999e-05,2]
[352585626,1739181031701,-538.68677658,9.999e-05,2]
[352585627,1739181031710,-138.40876125,9.999e-05,2]
[352585628,1739181031726,-366.81224433,9.999e-05,2]
[352585629,1739181031736,-500.0,9.999e-05,2]
[352585630,1739181031747,-501.55901492,9.999e-05,2]
[352585631,1739181031759,-500.0,9.999e-05,2]
[352585632,1739181031768,-500.0,9.999e-05,2]
[352585633,1739181031777,-500.0,9.999e-05,2]
[352585634,1739181031787,-500.0,9.999e-05,2]
[352585635,1739181031797,-500.0,9.999e-05,2]
[352585636,1739181031806,-500.0,9.999e-05,2]
[352585637,1739181031815,-514.38615332,9.999e-05,2]
[352585638,1739181031825,-500.0,9.999e-05,2]
[352585639,1739181031836,-500.0,9.999e-05,2]
[352585640,1739181031845,-500.0,9.999e-05,2]
[352585641,1739181031855,-476.78561261,9.999e-05,2]
[352585642,1739181031864,-500.0,9.999e-05,2]
[352585643,1739181031873,-500.0,9.999e-05,2]
[352585644,1739181031882,-502.94149581,9.999e-05,2]
[352585645,1739181031892,-503.42109767,9.999e-05,2]
[352585646,1739181031902,-363.56528334,9.999e-05,2]
[352585647,1739181031913,-136.43471666,9.999e-05,2]
[352585648,1739181031923,-503.66721601,9.999e-05,2]
[352585649,1739181031932,-500.0,9.999e-05,2]
[352585650,1739181031942,-500.0,9.999e-05,2]
[352585651,1739181031951,-502.7192038,9.999e-05,2]
[352585652,1739181031960,-500.0,9.999e-05,2]
[352585653,1739181031969,-500.0,9.999e-05,2]
[352585654,1739181031978,-500.0,9.999e-05,2]
[352585655,1739181031987,-502.77118118,9.999e-05,2]
[352585656,1739181031997,-501.42864019,9.999e-05,2]
[352585657,1739181032006,-500.0,9.999e-05,2]
[352585658,1739181032015,-500.0,9.999e-05,2]
[352585659,1739181032025,-500.0,9.999e-05,2]
[352585660,1739181032034,-500.0,9.999e-05,2]
[352585661,1739181032043,-500.0,9.999e-05,2]
[352585662,1739181032052,-500.0,9.999e-05,2]
[352585663,1739181032062,-500.0,9.999e-05,2]
[352585664,1739181032072,-500.0,9.999e-05,2]
[352585665,1739181032081,-613.5374111,9.999e-05,2]
[352585666,1739181032090,-500.0,9.999e-05,2]
[352585667,1739181032099,-500.0,9.999e-05,2]
[352585668,1739181032108,-500.0,9.999e-05,2]
[352585669,1739181032116,-364.05964437,9.999e-05,2]
[352585671,1739181032128,-138.07416065,9.999e-05,2]
[352585673,1739181032137,-144.13400477,9.999e-05,2]
[352585675,1739181032148,-355.86599523,9.999e-05,2]
[352585677,1739181032157,-60.92547391,9.999e-05,2]
[352585679,1739181032168,-439.07452609,9.999e-05,2]
[352585681,1739181032177,-506.04708602,9.999e-05,2]
[352585683,1739181032186,-527.02595945,9.999e-05,2]
[352585685,1739181032197,-56.92093266,9.999e-05,2]
[352585687,1739181032206,-500.0,9.999e-05,2]
[352585689,1739181032216,-390.38922168,9.999e-05,2]
[352585691,1739181032227,-109.61077832,9.999e-05,2]
[352585693,1739181032236,-171.09922468,9.999e-05,2]
[352585696,1739181032249,-328.90077532,9.999e-05,2]
[352585698,1739181032259,-500.0,9.999e-05,2]
[352585700,1739181032268,-500.0,9.999e-05,2]
[352585702,1739181032277,-500.0,9.999e-05,2]
[352585704,1739181032287,-501.0543031,9.999e-05,2]
[352585706,1739181032296,-500.0,9.999e-05,2]
[352585708,1739181032305,-165.87492158,9.999e-05,2]
[352585710,1739181032315,-294.33656805,9.999e-05,2]
[352585712,1739181032334,-43.33429449,9.999e-05,2]
[352585713,1739181032343,-497.16366139,9.999e-05,2]
[352585714,1739181032358,-2.83633861,9.999e-05,2]
[352585715,1739181032367,-500.0,9.999e-05,2]
[352585716,1739181032376,-500.0,9.999e-05,2]
[352585717,1739181032386,-500.0,9.999e-05,2]
[352585718,1739181032395,-500.0,9.999e-05,2]
[352585719,1739181032403,-500.0,9.999e-05,2]
[352585720,1739181032413,-500.0,9.999e-05,2]
[352585721,1739181032422,-500.0,9.999e-05,2]
[352585722,1739181032431,-500.0,9.999e-05,2]
[352585723,1739181032440,-500.0,9.999e-05,2]
[352585724,1739181032450,-500.0,9.999e-05,2]
[352585725,1739181032459,-500.0,9.999e-05,2]
[352585726,1739181032469,-407.03769605,9.999e-05,2]
[352585727,1739181032478,-276.89345435,9.999e-05,2]
[352585732,1739181037543,-223.10654565,9.999e-05,2]
[352585733,1739181037552,-266.78694195,9.999e-05,2]
[352585734,1739181037561,-502.56980573,9.999e-05,2]
[352585735,1739181037570,-500.0,9.999e-05,2]
[352585736,1739181037579,-500.0,9.999e-05,2]
[352585737,1739181037588,-501.40187274,9.999e-05,2]
[352585738,1739181037596,-482.91115973,9.999e-05,2]
[352585739,1739181037608,-17.08884027,9.999e-05,2]
[352585740,1739181037617,-500.0,9.999e-05,2]
[352585741,1739181037626,-214.01447273,9.999e-05,2]
[352585742,1739181037655,-285.98552727,9.999e-05,2]
[352585743,1739181037663,-500.0,9.999e-05,2]
[352585744,1739181037673,-500.0,9.999e-05,2]
[352585745,1739181037681,-500.0,9.999e-05,2]
[352585746,1739181037690,-500.0,9.999e-05,2]
[352585747,1739181037700,-500.0,9.999e-05,2]
[352585748,1739181037709,-500.0,9.999e-05,2]
[352585749,1739181037718,-500.0,9.999e-05,2]
[352585750,1739181037727,-500.0,9.999e-05,2]
[352585751,1739181037736,-500.0,9.999e-05,2]
[352585752,1739181037746,-211.37810774,9.999e-05,2]
[352585753,1739181037761,-500.0,9.999e-05,2]
[352585754,1739181037770,-500.0,9.999e-05,2]
[352585755,1739181037779,-500.0,9.999e-05,2]
[352585756,1739181037787,-340.27,9.999e-05,2]
[352585757,1739181037796,-500.0,9.999e-05,2]
[352585758,1739181037806,-500.0,9.999e-05,2]
[352585759,1739181037815,-500.0,9.999e-05,2]
[352585760,1739181037823,-500.0,9.999e-05,2]
[352585761,1739181037833,-500.0,9.999e-05,2]
[352585762,1739181037843,-501.94027938,9.999e-05,2]
[352585763,1739181037852,-500.0,9.999e-05,2]
[352585764,1739181037861,-500.0,9.999e-05,2]
[352585765,1739181037870,-500.0,9.999e-05,2]
[352585766,1739181037879,-202.06761645,9.999e-05,2]
[352585768,1739181037888,-500.0,9.999e-05,2]
[352585770,1739181037897,-500.0,9.999e-05,2]
[352585772,1739181037907,-500.0,9.999e-05,2]
[352585774,1739181037916,-500.0,9.999e-05,2]
[352585776,1739181037925,-500.0,9.999e-05,2]
[352585778,1739181037934,-500.0,9.999e-05,2]
[352585780,1739181037943,-503.21414428,9.999e-05,2]
[352585782,1739181037953,-500.0,9.999e-05,2]
[352585784,1739181037963,-243.23664586,9.999e-05,2]
[352585786,1739181037971,-500.0,9.999e-05,2]
[352585788,1739181037981,-501.48708537,9.999e-05,2]
[352585790,1739181037990,-500.0,9.999e-05,2]
[352585792,1739181037999,-501.5871416,9.999e-05,2]
[352585794,1739181038008,-500.0,9.999e-05,2]
[352585796,1739181038017,-500.0,9.999e-05,2]
[352585798,1739181038026,-500.0,9.999e-05,2]
[352585800,1739181038035,-500.0,9.999e-05,2]
[352585802,1739181038044,-500.0,9.999e-05,2]
[352585804,1739181038053,-501.7654263,9.999e-05,2]
[352585806,1739181038062,-500.0,9.999e-05,2]
[352585808,1739181038070,-504.23959688,9.999e-05,2]
[352585810,1739181038079,-500.0,9.999e-05,2]
[352585812,1739181038088,-503.61280316,9.999e-05,2]
[352585814,1739181038097,-500.0,9.999e-05,2]
[352585816,1739181038107,-500.0,9.999e-05,2]
[352585818,1739181038116,-500.0,9.999e-05,2]
[352585820,1739181038125,-500.0,9.999e-05,2]
[352585822,1739181038134,-514.74048712,9.999e-05,2]
[352585824,1739181038143,-507.79630129,9.999e-05,2]
[352585825,1739181038152,-500.0,9.999e-05,2]
[352585826,1739181038161,-500.0,9.999e-05,2]
[352585827,1739181038169,-500.0,9.999e-05,2]
[352585828,1739181038178,-500.0,9.999e-05,2]
[352585829,1739181038187,-500.0,9.999e-05,2]
[352585830,1739181038196,-500.0,9.999e-05,2]
[352585831,1739181038204,-500.0,9.999e-05,2]
[352585832,1739181038213,-500.0,9.999e-05,2]
[352585833,1739181038222,-500.0,9.999e-05,2]
[352585834,1739181038231,-600.85792663,9.999e-05,2]
[352585835,1739181038240,-500.0,9.999e-05,2]
[352585836,1739181038250,-500.0,9.999e-05,2]
[352585837,1739181038259,-500.0,9.999e-05,2]
[352585839,1739181038267,-500.0,9.999e-05,2]
[352585841,1739181038277,-500.0,9.999e-05,2]
[352585843,1739181038286,-500.0,9.999e-05,2]
[352585844,1739181038295,-500.74122232,9.999e-05,2]
[352585846,1739181038304,-500.0,9.999e-05,2]
[352585848,1739181038313,-500.0,9.999e-05,2]
[352585850,1739181038323,-500.0,9.999e-05,2]
[352585852,1739181038333,-500.0,9.999e-05,2]
[352585854,1739181038343,-500.0,9.999e-05,2]
[352585856,1739181038352,-500.0,9.999e-05,2]
[352585858,1739181038362,-500.0,9.999e-05,2]
[352585860,1739181038371,-500.0,9.999e-05,2]
[352585862,1739181038380,-500.0,9.999e-05,2]
[352585864,1739181038390,-500.0,9.999e-05,2]
[352585866,1739181038399,-169.50158,9.999e-05,2]
[352585868,1739181038408,-500.0,9.999e-05,2]
[352585870,1739181038420,-194.71413545,9.999e-05,2]
[352585873,1739181038430,-500.0,9.999e-05,2]
[352585875,1739181038439,-500.0,9.999e-05,2]
[352585876,1739181038448,-504.14276813,9.999e-05,2]
[352585879,1739181038458,-500.0,9.999e-05,2]
[352585880,1739181038467,-506.61155032,9.999e-05,2]
[352585882,1739181038476,-500.0,9.999e-05,2]
[352585885,1739181038486,-502.08841038,9.999e-05,2]
[352585886,1739181038495,-500.0,9.999e-05,2]
[352585889,1739181038505,-500.0,9.999e-05,2]
[352585891,1739181038515,-500.0,9.999e-05,2]
[352585892,1739181038524,-500.0,9.999e-05,2]
[352585894,1739181038533,-500.0,9.999e-05,2]
[352585896,1739181038543,-500.0,9.999e-05,2]
[352585898,1739181038552,-502.10883726,9.999e-05,2]
[352585900,1739181038561,-501.22342323,9.999e-05,2]
[352585902,1739181038571,-503.12016863,9.999e-05,2]
[352585904,1739181038580,-500.0,9.999e-05,2]
[352585906,1739181038589,-500.0,9.999e-05,2]
[352585908,1739181038599,-517.32887044,9.999e-05,2]
[352585910,1739181038610,-500.0,9.999e-05,2]
[352585912,1739181038619,-500.0,9.999e-05,2]
[352585914,1739181038628,-500.0,9.999e-05,2]
[352585916,1739181038637,-500.0,9.999e-05,2]
[352585918,1739181038647,-504.10576539,9.999e-05,2]
[352585920,1739181038656,-516.98263943,9.999e-05,2]
[352585922,1739181038666,-500.77230348,9.999e-05,2]
[352585924,1739181038675,-500.0,9.999e-05,2]
[352585926,1739181038684,-517.92517822,9.999e-05,2]
[352585928,1739181038695,-563.40863812,9.999e-05,2]
[352585930,1739181038704,-500.0,9.999e-05,2]
[352585932,1739181038713,-501.18515424,9.999e-05,2]
[352585934,1739181038723,-507.86596143,9.999e-05,2]
[352585936,1739181038733,-500.0,9.999e-05,2]
[352585938,1739181038742,-531.05207122,9.999e-05,2]
[352585940,1739181038758,-500.76722724,9.999e-05,2]
[352585942,1739181038770,-500.0,9.999e-05,2]
[352585944,1739181038780,-500.0,9.999e-05,2]
[352585946,1739181038789,-500.0,9.999e-05,2]
[352585948,1739181038799,-500.0,9.999e-05,2]
[352585950,1739181038808,-500.0,9.999e-05,2]
[352585952,1739181038818,-500.0,9.999e-05,2]
[352585954,1739181038828,-500.0,9.999e-05,2]
[352585956,1739181038838,-500.0,9.999e-05,2]
[352585958,1739181038848,-500.0,9.999e-05,2]
[352585960,1739181038856,-503.50789512,9.999e-05,2]
[352585962,1739181038865,-500.0,9.999e-05,2]
[352585964,1739181038875,-601.75870708,9.999e-05,2]
[352585966,1739181038884,-500.0,9.999e-05,2]
[352585968,1739181038893,-502.37939975,9.999e-05,2]
[352585970,1739181038903,-501.98615083,9.999e-05,2]
[352585972,1739181038912,-329.11541872,0.0001,2]
[352585974,1739181038921,-500.0,0.00010136,2]
[352585976,1739181038931,-500.0,0.00010136,2]
[352585978,1739181038941,-500.0,0.00010136,2]
[352585980,1739181038951,-500.0,0.00010136,2]
[352585982,1739181038961,-500.0,0.00010136,2]
[352585984,1739181038970,-502.39008495,0.00010136,2]
[352585986,1739181038979,-500.0,0.00010136,2]
[352585988,1739181038988,-500.0,0.00010136,2]
[352585990,1739181038998,-500.0,0.00010136,2]
[352585992,1739181039007,-500.0,0.00010136,2]
[352585994,1739181039016,-500.0,0.00010136,2]
[352585996,1739181039025,-500.0,0.00010136,2]
[352585998,1739181039035,-500.0,0.00010136,2]
[352586000,1739181039044,-500.0,0.00010136,2]
[352586002,1739181039054,-500.0,0.00010136,2]
[352586004,1739181039063,-158.01630328,0.00010136,2]
[352586006,1739181039072,-500.0,0.00010136,2]
[352586008,1739181039083,-500.0,0.00010136,2]
[352586010,1739181039092,-500.0,0.00010136,2]
[352586012,1739181039102,-500.0,0.00010136,2]
[352586014,1739181039111,-500.0,0.00010136,2]
[352586016,1739181039120,-500.0,0.00010136,2]
[352586018,1739181039130,-579.36126551,0.00010136,2]
[352586019,1739181039139,-500.0,0.00010136,2]